bitfinex/quotes_BTCUSD_20230103
["timestamp","ask_amount","ask_price","bid_price","bid_amount"]
[1672713163241,0.01720045,16709.0,16708.0,1.0226]
[1672713163493,0.01635076,16709.0,16708.0,1.0227203]
[1672713163743,0.01635076,16709.0,16708.0,1.6400633]
[1672713164491,0.01635076,16709.0,16708.0,1.75020423]
[1672713164736,0.01635076,16709.0,16708.0,1.6400633]
[1672713164986,0.01635076,16709.0,16708.0,2.36750428]
[1672713165241,0.01635076,16709.0,16708.0,2.20560428]
[1672713165488,0.01635076,16709.0,16708.0,1.58826128]
[1672713165708,0.01635076,16709.0,16708.0,0.8608203]
[1672713165994,0.01635076,16709.0,16708.0,1.58827858]
[1672713167256,0.01635076,16709.0,16708.0,2.20562158]
[1672713167508,0.01635076,16709.0,16708.0,2.79838764]
[1672713167752,0.01635076,16709.0,16708.0,1.45358636]
[1672713170203,0.0252908,16709.0,16708.0,1.29276606]
[1672713170708,0.01635076,16709.0,16708.0,1.91010906]
[1672713170942,0.01635076,16709.0,16708.0,1.93110906]
[1672713171191,0.01635076,16709.0,16708.0,1.31376606]
[1672713172258,0.01635076,16709.0,16708.0,1.31388636]
[1672713180694,0.01635076,16709.0,16708.0,1.93122936]
[1672713181106,0.01635076,16709.0,16708.0,1.31388636]
[1672713183132,0.01635076,16709.0,16708.0,1.31376606]
[1672713184896,0.01635076,16709.0,16708.0,1.93110906]
[1672713185149,0.01635076,16709.0,16708.0,1.31376606]
[1672713185443,0.01635076,16709.0,16708.0,1.31368903]
[1672713186640,0.01635076,16709.0,16708.0,1.31380933]
[1672713187161,0.61482976,16709.0,16708.0,1.31380933]
[1672713187913,0.91482976,16709.0,16708.0,1.31380933]
[1672713188167,0.61482976,16709.0,16708.0,1.31380933]
[1672713188930,0.61482976,16709.0,16708.0,1.29280933]
[1672713189958,0.61482976,16709.0,16708.0,1.29880933]
[1672713191703,0.61482976,16709.0,16708.0,1.91615233]
[1672713192195,0.61482976,16709.0,16708.0,1.29880933]
[1672713193701,0.61482976,16709.0,16708.0,0.59888636]
[1672713194194,0.61482976,16709.0,16708.0,0.59876606]
[1672713194995,0.61482976,16709.0,16708.0,1.29876606]
[1672713197734,0.91482976,16709.0,16708.0,1.29876606]
[1672713199229,0.61482976,16709.0,16708.0,1.29876606]
[1672713200736,0.91482976,16709.0,16708.0,1.29876606]
[1672713200986,0.91482976,16709.0,16708.0,0.59876606]
[1672713201229,0.61482976,16709.0,16708.0,0.59876606]
[1672713201961,0.61482976,16709.0,16708.0,1.29876606]
[1672713202718,0.91482976,16709.0,16708.0,1.29876606]
[1672713203545,0.61482976,16709.0,16708.0,1.29876606]
[1672713203792,0.61482976,16709.0,16708.0,1.91610906]
[1672713204036,0.61482976,16709.0,16708.0,1.29876606]
[1672713207366,0.61482976,16709.0,16708.0,1.29867321]
[1672713211289,0.61482976,16709.0,16708.0,0.59867321]
[1672713211555,0.61482976,16709.0,16708.0,1.29867321]
[1672713212304,0.61398755,16709.0,16708.0,1.29867321]
[1672713217595,0.61398755,16709.0,16708.0,0.59867321]
[1672713218622,0.61398755,16709.0,16708.0,1.29867321]
[1672713223379,0.01550855,16709.0,16708.0,2.02638859]
[1672713223643,0.01550855,16709.0,16708.0,2.18798859]
[1672713223917,0.01550855,16709.0,16708.0,2.07761621]
[1672713224680,0.01550855,16709.0,16708.0,2.07161621]
[1672713225180,0.01550855,16709.0,16708.0,2.79914451]
[1672713225432,0.01550855,16709.0,16708.0,2.18180151]
[1672713226712,0.01550855,16709.0,16708.0,2.79914451]
[1672713227077,0.01550855,16709.0,16708.0,2.18180151]
[1672713227367,0.01550855,16709.0,16708.0,2.79914451]
[1672713227615,0.01550855,16709.0,16708.0,2.18180151]
[1672713237033,0.01550855,16709.0,16708.0,2.1817362]
[1672713237808,0.01550855,16709.0,16708.0,2.18168808]
[1672713238065,0.01550855,16709.0,16708.0,2.02008808]
[1672713239363,0.01539808,16709.0,16708.0,2.02008808]
[1672713239609,0.01539808,16709.0,16708.0,2.63743108]
[1672713240846,0.01539808,16709.0,16708.0,2.02008808]
[1672713241102,0.01539808,16709.0,16708.0,2.63743108]
[1672713243892,0.01539808,16709.0,16708.0,2.79933108]
[1672713244372,0.00689808,16709.0,16708.0,2.79933108]
[1672713245377,0.00689808,16709.0,16708.0,2.82033108]
[1672713245869,0.00689808,16709.0,16708.0,2.20298808]
[1672713246118,0.00689808,16709.0,16708.0,2.82033108]
[1672713246368,0.00689808,16709.0,16708.0,2.20298808]
[1672713247107,0.00689808,16709.0,16708.0,2.82033108]
[1672713247376,0.00689808,16709.0,16708.0,2.20298808]
[1672713247620,0.00689808,16709.0,16708.0,2.82033108]
[1672713247869,0.00689808,16709.0,16708.0,2.20298808]
[1672713248126,0.00689808,16709.0,16708.0,2.82033108]
[1672713249156,0.00689808,16709.0,16708.0,2.20298808]
[1672713249401,0.00689808,16709.0,16708.0,2.82033108]
[1672713249646,0.00689808,16709.0,16708.0,2.20298808]
[1672713252174,0.00689808,16709.0,16708.0,1.50298808]
[1672713253187,0.00689808,16709.0,16708.0,2.20298808]
[1672713260607,0.00689808,16709.0,16708.0,1.50298808]
[1672713261715,0.00689808,16709.0,16708.0,2.20298808]
[1672713263492,0.00689808,16709.0,16708.0,2.20291686]
[1672713267823,0.00689808,16709.0,16708.0,1.50291686]
[1672713269015,0.00689808,16709.0,16708.0,2.20291686]
[1672713274318,0.00689808,16709.0,16708.0,1.47543668]
[1672713274588,0.00689808,16709.0,16708.0,2.20308308]
[1672713274847,0.00689808,16709.0,16708.0,1.47543668]
[1672713277666,0.00689808,16709.0,16708.0,1.47534927]
[1672713278128,0.00689808,16709.0,16708.0,1.31344927]
[1672713280555,0.00689808,16709.0,16708.0,0.61344927]
[1672713281325,0.00689808,16709.0,16708.0,1.31344927]
[1672713283313,0.00689808,16709.0,16708.0,2.04097688]
[1672713285290,0.00689808,16709.0,16708.0,1.31344927]
[1672713287244,0.00689808,16709.0,16708.0,0.61344927]
[1672713288189,0.00689808,16709.0,16708.0,1.31344927]
[1672713288445,0.00689808,16709.0,16708.0,2.65840846]
[1672713288704,0.00689808,16709.0,16708.0,2.04106546]
[1672713288945,0.00689808,16709.0,16708.0,1.31344927]
[1672713291107,0.00689808,16709.0,16708.0,2.0410215]
[1672713291350,0.00689808,16709.0,16708.0,1.31344927]
[1672713293659,0.07665769,16709.0,16708.0,1.31344927]
[1672713294171,0.07665769,16709.0,16708.0,0.61344927]
[1672713295178,0.07665769,16709.0,16708.0,1.31344927]
[1672713298140,0.07665769,16709.0,16708.0,1.31337349]
[1672713300407,0.07665769,16709.0,16708.0,2.0407991]
[1672713300668,0.07665769,16709.0,16708.0,2.04079911]
[1672713300920,0.07665769,16709.0,16708.0,1.31337349]
[1672713301168,0.07665769,16709.0,16708.0,0.61337349]
[1672713302200,0.07665769,16709.0,16708.0,1.31337349]
[1672713302461,0.07665769,16709.0,16708.0,2.04076319]
[1672713307437,0.07665769,16709.0,16708.0,2.65810619]
[1672713307693,0.07665769,16709.0,16708.0,2.04076319]
[1672713313234,0.07665769,16709.0,16708.0,1.34076319]
[1672713314261,0.07665769,16709.0,16708.0,2.04076319]
[1672713314518,0.07665769,16709.0,16708.0,1.31337349]
[1672713314770,0.07665769,16709.0,16708.0,2.04077281]
[1672713315274,0.07665769,16709.0,16708.0,1.31337349]
[1672713318941,0.07665769,16709.0,16708.0,1.31328683]
[1672713322407,0.07665769,16709.0,16708.0,1.31340713]
[1672713331092,0.07665769,16709.0,16708.0,0.61340713]
[1672713332090,0.07665769,16709.0,16708.0,1.31340713]
[1672713339100,0.07665769,16709.0,16708.0,1.31328683]
[1672713341788,0.00689808,16709.0,16708.0,1.31328683]
[1672713342817,0.00689808,16709.0,16708.0,1.31340713]
[1672713343052,0.00689808,16709.0,16708.0,1.31332835]
[1672713345081,0.00689808,16709.0,16708.0,0.61332835]
[1672713345568,0.05652151,16709.0,16708.0,0.61332835]
[1672713345800,0.05652151,16709.0,16708.0,0.61320805]
[1672713346019,0.05652151,16709.0,16708.0,1.31320805]
[1672713346276,0.05652151,16709.0,16708.0,1.31332835]
[1672713346517,0.00689808,16709.0,16708.0,1.31332835]
[1672713347710,0.05962298,16709.0,16708.0,1.31332835]
[1672713348260,0.05962298,16709.0,16708.0,1.31320805]
[1672713349268,0.05962298,16709.0,16708.0,1.31332835]
[1672713351007,0.05962298,16709.0,16708.0,1.31320805]
[1672713352054,0.05962298,16709.0,16708.0,0.61320805]
[1672713353274,0.05962298,16709.0,16708.0,1.31320805]
[1672713353529,0.35962298,16709.0,16708.0,1.31320805]
[1672713355932,0.05962298,16709.0,16708.0,1.31320805]
[1672713356427,0.35962298,16709.0,16708.0,1.31320805]
[1672713357379,0.05962298,16709.0,16708.0,1.31320805]
[1672713360542,0.05962298,16709.0,16708.0,0.61320805]
[1672713361755,0.05962298,16709.0,16708.0,1.31320805]
[1672713363760,0.05962298,16709.0,16708.0,1.3131447]
[1672713367706,0.05950739,16709.0,16708.0,0.6131447]
[1672713367953,0.05950739,16709.0,16708.0,0.613265]
[1672713368714,0.05950739,16709.0,16708.0,1.313265]
[1672713371395,0.05950739,16709.0,16708.0,1.3131447]
[1672713373634,7.55950739,16709.0,16708.0,1.3131447]
[1672713374147,7.85950739,16709.0,16708.0,1.3131447]
[1672713374400,7.55950739,16709.0,16708.0,1.3131447]
[1672713374637,0.05950739,16709.0,16708.0,1.3131447]
[1672713380118,0.05950739,16709.0,16708.0,0.6131447]
[1672713380871,0.35950739,16709.0,16708.0,0.6131447]
[1672713381099,0.96768684,16709.0,16708.0,0.721]
[1672713383106,1.56616584,16709.0,16708.0,0.721]
[1672713383349,2.18167747,16709.0,16708.0,0.721]
[1672713383595,1.57466584,16709.0,16708.0,0.721]
[1672713387191,2.18167747,16709.0,16708.0,0.721]
[1672713387388,1.57466584,16709.0,16708.0,0.721]
[1672713389303,1.26496539,16709.0,16708.0,0.721]
[1672713389501,1.26496539,16709.0,16708.0,1.41963532]
[1672713392381,1.26496539,16709.0,16708.0,1.41955158]
[1672713395592,1.56496539,16709.0,16708.0,1.41955158]
[1672713396113,1.26496539,16709.0,16708.0,1.41955158]
[1672713396597,1.56496539,16709.0,16708.0,1.41955158]
[1672713397340,1.26496539,16709.0,16708.0,1.41955158]
[1672713397592,1.56496539,16709.0,16708.0,1.41955158]
[1672713398598,1.26496539,16709.0,16708.0,1.41955158]
[1672713401845,1.26496539,16709.0,16708.0,0.71955158]
[1672713402762,1.26496539,16709.0,16708.0,1.41955158]
[1672713408845,1.26496539,16709.0,16708.0,0.71955158]
[1672713409896,1.26496539,16709.0,16708.0,1.41955158]
[1672713412042,1.26496539,16709.0,16708.0,2.18320916]
[1672713412771,1.26496539,16709.0,16708.0,2.18117204]
[1672713416015,1.26496539,16709.0,16708.0,1.48117204]
[1672713416764,1.26496539,16709.0,16708.0,2.18117204]
[1672713422892,1.26496539,16709.0,16708.0,1.48117204]
[1672713423666,1.26496539,16709.0,16708.0,2.18117204]
[1672713427545,1.26496539,16709.0,16708.0,2.1622929]
[1672713428004,1.26696539,16709.0,16708.0,2.1712929]
[1672713428242,1.26496539,16709.0,16708.0,2.1622929]
[1672713428524,1.26696539,16709.0,16708.0,2.1682929]
[1672713429849,1.26696539,16709.0,16708.0,1.4682929]
[1672713430794,1.26696539,16709.0,16708.0,2.1682929]
[1672713434567,1.26696539,16709.0,16708.0,2.16817291]
[1672713436917,1.26696539,16709.0,16708.0,1.46817291]
[1672713437751,1.26696539,16709.0,16708.0,2.16817291]
[1672713443978,1.26696539,16709.0,16708.0,1.46817291]
[1672713444936,1.26696539,16709.0,16708.0,2.16817291]
[1672713449199,1.56696539,16709.0,16708.0,2.16817291]
[1672713450666,1.56685507,16709.0,16708.0,2.16817291]
[1672713450912,1.96685507,16709.0,16708.0,0.70451533]
[1672713451177,2.5738667,16709.0,16708.0,0.706]
[1672713451445,1.97599401,16709.0,16708.0,0.706]
[1672713451692,2.58300564,16709.0,16708.0,0.706]
[1672713453422,1.97599401,16709.0,16708.0,0.706]
[1672713458479,2.58300564,16709.0,16708.0,0.706]
[1672713459494,1.97599401,16709.0,16708.0,0.706]
[1672713464433,1.97599401,16709.0,16708.0,0.006]
[1672713465364,1.97599401,16709.0,16708.0,0.706]
[1672713466498,1.57599401,16709.0,16708.0,0.706]
[1672713467197,1.57599401,16709.0,16708.0,1.46945605]
[1672713468595,1.26685507,16709.0,16708.0,2.08679905]
[1672713468843,1.26685507,16709.0,16708.0,2.04154431]
[1672713469086,1.26685507,16709.0,16708.0,1.89543126]
[1672713469339,1.26685507,16709.0,16708.0,2.65895447]
[1672713469832,1.26685507,16709.0,16708.0,1.89543126]
[1672713470892,1.26685507,16709.0,16708.0,1.27808826]
[1672713471134,1.26685507,16709.0,16708.0,1.89543126]
[1672713471382,1.26685507,16709.0,16708.0,1.27808826]
[1672713474848,1.26685507,16709.0,16708.0,1.89543126]
[1672713475128,1.26685507,16709.0,16708.0,1.89531749]
[1672713476390,1.26685507,16709.0,16708.0,1.27797449]
[1672713476645,1.26685507,16709.0,16708.0,1.89531749]
[1672713476896,8.76685507,16709.0,16708.0,1.89531749]
[1672713477141,8.76685507,16709.0,16708.0,1.27797449]
[1672713480605,1.26685507,16709.0,16708.0,1.27797449]
[1672713480847,1.26685507,16709.0,16708.0,1.89531749]
[1672713481094,1.26685507,16709.0,16708.0,1.27797449]
[1672713482433,1.26685507,16709.0,16708.0,0.57797449]
[1672713482695,1.26685507,16709.0,16708.0,1.27797449]
[1672713484677,8.76685507,16709.0,16708.0,1.27797449]
[1672713484924,8.76685507,16709.0,16708.0,0.70588623]
[1672713490127,9.06685507,16709.0,16708.0,0.70588623]
[1672713494353,8.76685507,16709.0,16708.0,0.70588623]
[1672713494565,9.06685507,16709.0,16708.0,0.70588623]
[1672713494816,8.76685507,16709.0,16708.0,0.70588623]
[1672713497366,9.06685507,16709.0,16708.0,0.70588623]
[1672713497823,8.76685507,16709.0,16708.0,0.70588623]
[1672713498066,9.06685507,16709.0,16708.0,0.70588623]
[1672713498346,8.76685507,16709.0,16708.0,0.70588623]
[1672713498586,9.06685507,16709.0,16708.0,0.70588623]
[1672713498798,9.06685507,16709.0,16708.0,0.70580748]
[1672713500545,1.56685507,16709.0,16708.0,0.00580748]
[1672713500792,1.26685507,16709.0,16708.0,0.76933084]
[1672713501534,1.26685507,16709.0,16708.0,1.46933084]
[1672713502019,1.56685507,16709.0,16708.0,1.46933084]
[1672713502508,1.26685507,16709.0,16708.0,1.46933084]
[1672713502727,1.56685507,16709.0,16708.0,1.46933084]
[1672713503377,1.26685507,16709.0,16708.0,1.46933084]
[1672713504590,8.76685507,16709.0,16708.0,1.46933084]
[1672713504845,8.76685507,16709.0,16708.0,0.70580748]
[1672713507280,9.06685507,16709.0,16708.0,0.70580748]
[1672713508506,9.06685507,16709.0,16708.0,0.00580748]
[1672713508752,9.06685507,16709.0,16708.0,0.70580748]
[1672713510041,8.76685507,16709.0,16708.0,0.70580748]
[1672713511234,9.06685507,16709.0,16708.0,0.70580748]
[1672713513494,8.76685507,16709.0,16708.0,0.70580748]
[1672713513745,9.06685507,16709.0,16708.0,0.70580748]
[1672713513984,8.76685507,16709.0,16708.0,0.70580748]
[1672713514724,8.76685507,16709.0,16708.0,0.00580748]
[1672713515716,9.06685507,16709.0,16708.0,0.70580748]
[1672713519100,1.26685507,16709.0,16708.0,2.17465944]
[1672713519353,1.26685507,16709.0,16708.0,1.41100186]
[1672713522601,1.26685507,16709.0,16708.0,1.41088295]
[1672713525692,8.76685507,16709.0,16708.0,1.41088295]
[1672713525940,8.76685507,16709.0,16708.0,0.71088295]
[1672713526791,8.76685507,16709.0,16708.0,1.41088295]
[1672713527052,8.76685507,16709.0,16708.0,0.70568857]
[1672713527845,9.06685507,16709.0,16708.0,0.70568857]
[1672713528092,8.76685507,16709.0,16708.0,0.70568857]
[1672713528312,9.06685507,16709.0,16708.0,0.70568857]
[1672713528552,8.76685507,16709.0,16708.0,0.70568857]
[1672713528802,8.76685507,16709.0,16708.0,1.46907741]
[1672713529288,8.76685507,16709.0,16708.0,0.70568857]
[1672713531503,9.06685507,16709.0,16708.0,0.70568857]
[1672713531756,8.76685507,16709.0,16708.0,0.70568857]
[1672713533711,9.06685507,16709.0,16708.0,0.70568857]
[1672713534153,8.76685507,16709.0,16708.0,0.70568857]
[1672713535835,8.76685507,16709.0,16708.0,1.46914442]
[1672713538576,8.76685507,16709.0,16708.0,0.70568857]
[1672713539831,8.76685507,16709.0,16708.0,0.00568857]
[1672713540844,8.76685507,16709.0,16708.0,0.70568857]
[1672713541410,9.06685507,16709.0,16708.0,0.70568857]
[1672713542490,8.76685507,16709.0,16708.0,0.70568857]
[1672713542739,9.06685507,16709.0,16708.0,0.70568857]
[1672713543765,9.06678507,16709.0,16708.0,0.70568857]
[1672713546792,9.06678507,16709.0,16708.0,0.00568857]
[1672713547943,9.06678507,16709.0,16708.0,0.70568857]
[1672713553989,9.06678507,16709.0,16708.0,0.00568857]
[1672713554960,9.06678507,16709.0,16708.0,0.70568857]
[1672713556455,9.06678507,16709.0,16708.0,1.46927882]
[1672713556705,9.06678507,16709.0,16708.0,0.70568857]
[1672713556949,9.06678507,16709.0,16708.0,1.46927882]
[1672713557191,9.06678507,16709.0,16708.0,0.70568857]
[1672713557439,9.06678507,16709.0,16708.0,1.46927888]
[1672713557686,9.06678507,16709.0,16708.0,0.70568857]
[1672713557964,9.06678507,16709.0,16708.0,1.46927884]
[1672713558220,1.56678507,16709.0,16708.0,1.46927884]
[1672713558465,1.26678507,16709.0,16708.0,2.64458248]
[1672713558702,1.26678507,16709.0,16708.0,2.02723948]
[1672713564654,1.26678507,16709.0,16708.0,1.32723948]
[1672713565631,1.26678507,16709.0,16708.0,2.02723948]
[1672713565897,1.26678507,16709.0,16708.0,2.02712934]
[1672713566833,8.76678507,16709.0,16708.0,2.02712934]
[1672713571511,8.76678507,16709.0,16708.0,1.32712934]
[1672713572730,8.76678507,16709.0,16708.0,2.02712934]
[1672713576800,9.06678507,16709.0,16708.0,2.02712934]
[1672713577033,8.76678507,16709.0,16708.0,2.02712934]
[1672713578616,8.76678507,16709.0,16708.0,1.32712934]
[1672713579563,8.76678507,16709.0,16708.0,2.02712934]
[1672713585792,8.76678507,16709.0,16708.0,1.32712934]
[1672713586768,8.76678507,16709.0,16708.0,2.02712934]
[1672713589420,9.06678507,16709.0,16708.0,1.26353907]
[1672713589865,8.76678507,16709.0,16708.0,1.8602057]
[1672713590126,8.76678507,16709.0,16708.0,1.26353907]
[1672713590321,9.06678507,16709.0,16708.0,1.26353907]
[1672713590540,9.06678507,16709.0,16708.0,1.26344188]
[1672713591006,8.76678507,16709.0,16708.0,1.86017582]
[1672713591744,8.76668879,16709.0,16708.0,1.86017582]
[1672713592594,8.76668879,16709.0,16708.0,1.16017582]
[1672713593653,8.76668879,16709.0,16708.0,1.86017582]
[1672713597416,1.26668879,16709.0,16708.0,1.86017582]
[1672713599593,1.26668879,16709.0,16708.0,1.16017582]
[1672713600704,1.66668879,16709.0,16708.0,1.86017582]
[1672713600951,1.66668879,16709.0,16708.0,1.30221518]
[1672713601200,1.26668879,16709.0,16708.0,1.30221518]
[1672713601945,8.76668879,16709.0,16708.0,1.30221518]
[1672713602711,8.76668879,16709.0,16708.0,0.70548124]
[1672713603219,9.06668879,16709.0,16708.0,0.70548124]
[1672713604019,8.76668879,16709.0,16708.0,0.70548124]
[1672713605767,9.06668879,16709.0,16708.0,0.70548124]
[1672713605986,8.76668879,16709.0,16708.0,1.30261805]
[1672713606234,8.76668879,16709.0,16708.0,0.70548124]
[1672713607432,8.76668879,16709.0,16708.0,1.30259454]
[1672713607982,8.76668879,16709.0,16708.0,0.70548124]
[1672713608902,9.06668879,16709.0,16708.0,0.70548124]
[1672713609883,8.76668879,16709.0,16708.0,0.70548124]
[1672713610137,9.06668879,16709.0,16708.0,0.70548124]
[1672713611855,9.07868135,16709.0,16708.0,0.70548124]
[1672713612366,9.68569298,16709.0,16708.0,0.70548124]
[1672713612589,9.07868135,16709.0,16708.0,0.7053952]
[1672713612840,9.68569298,16709.0,16708.0,0.7053952]
[1672713613110,9.07868135,16709.0,16708.0,0.7053952]
[1672713615403,9.68569298,16709.0,16708.0,0.7053952]
[1672713616202,9.07868135,16709.0,16708.0,0.7053952]
[1672713622710,1.57868135,16709.0,16708.0,2.00672641]
[1672713626929,1.56668879,16709.0,16708.0,2.00672641]
[1672713627674,1.56668879,16709.0,16708.0,1.30208549]
[1672713629188,1.56668879,16709.0,16708.0,0.60208549]
[1672713630675,1.56668879,16709.0,16708.0,1.30208549]
[1672713632935,1.57929094,16709.0,16708.0,1.30199569]
[1672713633712,9.05947956,16709.0,16708.0,1.30199569]
[1672713633949,9.05947956,16709.0,16708.0,0.7053054]
[1672713640591,9.05947956,16709.0,16708.0,0.0053054]
[1672713641389,9.05947956,16709.0,16708.0,0.7053054]
[1672713645326,9.05947956,16709.0,16708.0,1.30168661]
[1672713645571,9.05947956,16709.0,16708.0,1.30163184]
[1672713645790,9.05947956,16709.0,16708.0,0.7053054]
[1672713646292,0.04991941,16709.0,16708.0,1.97841322]
[1672713648845,0.04791941,16709.0,16708.0,2.13500782]
[1672713649612,0.05091941,16709.0,16708.0,2.13500782]
[1672713651419,0.04791941,16709.0,16708.0,2.13500782]
[1672713651682,0.04791941,16709.0,16708.0,2.15400782]
[1672713657500,0.04791941,16709.0,16708.0,2.15392737]
[1672713659748,0.04791941,16709.0,16708.0,2.77127037]
[1672713660255,0.04791941,16709.0,16708.0,2.15392737]
[1672713663428,0.04791941,16709.0,16708.0,2.77127037]
[1672713663958,0.04791941,16709.0,16708.0,1.45400782]
[1672713664424,0.04791941,16709.0,16708.0,2.15400782]
[1672713677437,0.04791941,16709.0,16708.0,1.45400782]
[1672713678180,0.04791941,16709.0,16708.0,2.15400782]
[1672713681387,0.04791941,16709.0,16708.0,2.15389265]
[1672713683353,0.04785341,16709.0,16708.0,2.15389265]
[1672713684345,0.04785341,16709.0,16708.0,1.45389265]
[1672713685387,0.04785341,16709.0,16708.0,2.15389265]
[1672713688099,0.04785341,16709.0,16708.0,2.15401295]
[1672713688356,0.04785341,16709.0,16708.0,2.15389265]
[1672713691331,0.04785341,16709.0,16708.0,1.45389265]
[1672713692155,0.04785341,16709.0,16708.0,2.15389265]
[1672713697948,0.04785341,16709.0,16708.0,1.99199265]
[1672713698281,0.04785341,16709.0,16708.0,1.29199265]
[1672713699222,0.04785341,16709.0,16708.0,1.99199265]
[1672713699728,0.04785341,16709.0,16708.0,1.97299265]
[1672713699958,0.05085341,16709.0,16708.0,1.97299265]
[1672713706476,0.05085341,16709.0,16708.0,1.97292487]
[1672713707928,0.05085341,16709.0,16708.0,1.37655023]
[1672713712096,0.05085341,16709.0,16708.0,0.67655023]
[1672713713162,0.05085341,16709.0,16708.0,1.37655023]
[1672713717577,0.0507537,16709.0,16708.0,1.37655023]
[1672713719282,0.0507537,16709.0,16708.0,0.67655023]
[1672713720283,0.0507537,16709.0,16708.0,1.37655023]
[1672713726261,0.0507537,16709.0,16708.0,0.67655023]
[1672713727220,0.0507537,16709.0,16708.0,1.37655023]
[1672713728472,0.06355812,16709.0,16708.0,0.7]
[1672713732929,7.56355812,16709.0,16708.0,0.7]
[1672713734689,0.06355812,16709.0,16708.0,0.7]
[1672713734938,0.06355812,16709.0,16707.0,2.0018842]
[1672713735239,0.0085,16708.0,16707.0,2.0018842]
[1672713735669,0.03934793,16708.0,16707.0,2.0018842]
[1672713735907,0.03934793,16708.0,16707.0,2.7018842]
[1672713736973,0.03934793,16708.0,16707.0,2.7208842]
[1672713738492,0.03934793,16708.0,16707.0,3.41681]
[1672713738718,0.03934793,16708.0,16707.0,4.034153]
[1672713739028,0.03934793,16708.0,16707.0,3.41681]
[1672713740974,0.03934793,16708.0,16707.0,3.41671676]
[1672713746236,0.03934793,16708.0,16707.0,2.71671676]
[1672713747232,0.03934793,16708.0,16707.0,3.41671676]
[1672713748762,0.03934793,16708.0,16707.0,3.25611676]
[1672713749281,0.03934793,16708.0,16707.0,3.87345976]
[1672713749525,0.03934793,16708.0,16707.0,3.25611676]
[1672713750510,0.03934793,16708.0,16707.0,2.65756576]
[1672713752255,0.03934793,16708.0,16707.0,2.63856576]
[1672713752514,0.03934793,16708.0,16707.0,2.65756576]
[1672713754310,0.03934793,16708.0,16707.0,3.27490876]
[1672713754566,0.03934793,16708.0,16707.0,2.65756576]
[1672713758339,0.03926173,16708.0,16707.0,2.65756576]
[1672713760621,0.03926173,16708.0,16707.0,3.27490876]
[1672713760854,0.03926173,16708.0,16707.0,2.65756576]
[1672713767940,0.03926173,16708.0,16707.0,3.27490876]
[1672713768185,0.03926173,16708.0,16707.0,1.95756576]
[1672713769180,0.03926173,16708.0,16707.0,2.65756576]
[1672713779454,0.03926173,16708.0,16707.0,2.65750257]
[1672713780726,0.03926173,16708.0,16707.0,1.95750257]
[1672713781708,0.03926173,16708.0,16707.0,2.65750257]
[1672713787658,0.03926173,16708.0,16707.0,1.95750257]
[1672713787902,0.03926173,16708.0,16707.0,2.65750257]
[1672713788655,0.03926173,16708.0,16707.0,2.63850257]
[1672713788898,0.04226173,16708.0,16707.0,2.63850257]
[1672713789113,0.03926173,16708.0,16707.0,2.63850257]
[1672713789399,0.04226173,16708.0,16707.0,2.63850257]
[1672713793991,0.04226173,16708.0,16707.0,1.93850257]
[1672713795004,0.04226173,16708.0,16707.0,2.63850257]
[1672713798363,0.34226173,16708.0,16707.0,2.63850257]
[1672713799622,0.04226173,16708.0,16707.0,2.63850257]
[1672713799863,0.34226173,16708.0,16707.0,2.63850257]
[1672713800322,0.04226173,16708.0,16707.0,2.63850257]
[1672713801111,0.04226173,16708.0,16707.0,1.93850257]
[1672713802006,0.04226173,16708.0,16707.0,2.63850257]
[1672713802578,0.04226173,16708.0,16707.0,2.63841575]
[1672713804414,0.04226173,16708.0,16707.0,3.25575875]
[1672713804657,0.04226173,16708.0,16707.0,2.63841575]
[1672713808128,0.04226173,16708.0,16707.0,1.93841575]
[1672713808908,0.04226173,16708.0,16707.0,2.63841575]
[1672713809400,0.03926173,16708.0,16707.0,2.63841575]
[1672713809645,0.04226173,16708.0,16707.0,2.63841575]
[1672713809900,0.03926173,16708.0,16707.0,2.63841575]
[1672713810150,0.04226173,16708.0,16707.0,2.63841575]
[1672713812184,0.03926173,16708.0,16707.0,2.63841575]
[1672713812431,0.04226173,16708.0,16707.0,2.63853606]
[1672713818875,0.03926173,16708.0,16707.0,2.63853606]
[1672713819111,0.03926173,16708.0,16707.0,2.65753606]
[1672713823760,0.03926173,16708.0,16707.0,1.95741575]
[1672713824252,0.03926173,16708.0,16707.0,1.95733198]
[1672713825515,0.03926173,16708.0,16707.0,2.65733198]
[1672713827682,0.03926173,16708.0,16707.0,2.65745229]
[1672713828811,0.03926173,16708.0,16707.0,3.27479529]
[1672713829067,0.03926173,16708.0,16707.0,2.65745229]
[1672713831694,0.03926173,16708.0,16707.0,1.95745229]
[1672713831946,0.03926173,16708.0,16707.0,2.65745229]
[1672713837622,0.03926173,16708.0,16707.0,3.27479529]
[1672713837877,0.03926173,16708.0,16707.0,2.57479529]
[1672713838125,0.03926173,16708.0,16707.0,1.95745229]
[1672713838899,0.03926173,16708.0,16707.0,2.65745229]
[1672713840358,0.03926173,16708.0,16707.0,2.65733198]
[1672713843992,0.03926173,16708.0,16707.0,2.65745229]
[1672713844485,0.03926173,16708.0,16707.0,2.65735911]
[1672713844735,0.03926173,16708.0,16707.0,3.27470211]
[1672713844979,0.03926173,16708.0,16707.0,2.57470211]
[1672713846006,0.03926173,16708.0,16707.0,2.65735911]
[1672713846252,0.03926173,16708.0,16707.0,3.27470211]
[1672713846502,0.03926173,16708.0,16707.0,2.6572388]
[1672713847740,0.03926173,16708.0,16707.0,2.65735911]
[1672713848234,0.03926173,16708.0,16707.0,3.27470211]
[1672713849483,0.03926173,16708.0,16707.0,2.65735911]
[1672713849730,0.03919421,16708.0,16707.0,2.65735911]
[1672713852011,0.03919421,16708.0,16707.0,1.95735911]
[1672713852263,0.03919421,16708.0,16707.0,2.65735911]
[1672713852520,0.03919421,16708.0,16707.0,3.27470211]
[1672713854075,0.03919421,16708.0,16707.0,2.65735911]
[1672713854337,0.03919421,16708.0,16707.0,3.27470211]
[1672713855129,0.03919421,16708.0,16707.0,2.65735911]
[1672713855378,0.03919421,16708.0,16707.0,3.27470211]
[1672713855655,0.03919421,16708.0,16707.0,2.65735911]
[1672713855884,0.03919421,16708.0,16707.0,3.27470211]
[1672713856144,0.03919421,16708.0,16707.0,3.2745818]
[1672713856405,0.03919421,16708.0,16707.0,2.6572388]
[1672713858170,0.05107079,16708.0,16707.0,2.0464798]
[1672713859646,0.05107079,16708.0,16707.0,2.04660011]
[1672713859904,0.05107079,16708.0,16707.0,2.0464798]
[1672713860411,0.03919421,16708.0,16707.0,2.0464798]
[1672713862055,0.04987726,16708.0,16707.0,2.0464798]
[1672713868904,0.04987726,16708.0,16707.0,2.0274798]
[1672713869390,0.05287726,16708.0,16707.0,2.0274798]
[1672713869890,0.05287726,16708.0,16707.0,1.3274798]
[1672713870645,0.05287726,16708.0,16707.0,1.3273734]
[1672713871152,0.05287726,16708.0,16707.0,2.0273734]
[1672713871647,0.04219421,16708.0,16707.0,2.6447164]
[1672713872147,0.04219421,16708.0,16707.0,2.0273734]
[1672713874622,0.04219421,16708.0,16707.0,2.6447164]
[1672713875118,0.04219421,16708.0,16707.0,2.0273734]
[1672713877096,0.04219421,16708.0,16707.0,1.3273734]
[1672713878053,0.04219421,16708.0,16707.0,2.0273734]
[1672713881755,0.04219421,16708.0,16707.0,2.61995558]